bitfinex/quotes_SOLUSD_20220129
["timestamp","ask_amount","ask_price","bid_price","bid_amount"]
[1643481145220,6.0,94.647,94.592,0.25]
[1643481145422,0.25,94.646,94.592,0.25]
[1643481147927,6.0,94.647,94.592,0.25]
[1643481148129,6.0,94.661,94.592,0.25]
[1643481148356,6.0,94.661,94.591,199.75]
[1643481148653,6.0,94.669,94.591,199.75]
[1643481148857,2.95669142,94.66,94.591,199.75]
[1643481149055,6.0,94.65,94.591,199.75]
[1643481149254,0.25,94.649,94.591,199.75]
[1643481149856,0.25,94.649,94.592,0.25]
[1643481150454,0.25,94.649,94.591,199.75]
[1643481150656,2.95669142,94.648,94.592,0.25]
[1643481150857,0.25,94.647,94.592,0.25]
[1643481152058,0.25,94.649,94.592,0.25]
[1643481152262,0.25,94.66,94.592,0.25]
[1643481152659,2.95669142,94.659,94.592,0.25]
[1643481152860,0.25,94.658,94.592,0.25]
[1643481153061,6.0,94.649,94.592,0.25]
[1643481153259,0.25,94.648,94.592,0.25]
[1643481153760,6.0,94.647,94.592,0.25]
[1643481154161,0.25,94.646,94.592,0.25]
[1643481155062,6.0,94.669,94.592,0.25]
[1643481155663,6.0,94.669,94.601,6.0]
[1643481155862,6.0,94.669,94.602,0.25]
[1643481156062,6.0,94.669,94.604,6.0]
[1643481156264,6.0,94.669,94.605,0.25]
[1643481157264,2.95669142,94.691,94.605,0.25]
[1643481157466,22.8739,94.698,94.605,0.25]
[1643481158065,22.8739,94.698,94.61,6.0]
[1643481158364,22.8739,94.698,94.614,6.0]
[1643481158763,0.25,94.697,94.615,0.25]
[1643481159868,0.25,94.697,94.611,0.25]
[1643481160468,22.8739,94.698,94.611,0.25]
[1643481160668,128.6739,94.698,94.611,0.25]
[1643481161670,2.95669142,94.685,94.611,0.25]
[1643481161868,22.9229,94.684,94.602,0.25]
[1643481162069,6.0,94.674,94.609,6.0]
[1643481162268,0.25,94.673,94.61,0.25]
[1643481163469,0.25,94.673,94.603,6.0]
[1643481163668,0.25,94.673,94.604,0.25]
[1643481164469,0.25,94.673,94.611,6.0]
[1643481164870,0.25,94.673,94.612,0.25]
[1643481165070,6.0,94.674,94.612,0.25]
[1643481165273,0.25,94.673,94.612,0.25]
[1643481166675,0.25,94.683,94.612,0.25]
[1643481169179,6.0,94.674,94.612,0.25]
[1643481169377,0.25,94.673,94.612,0.25]
[1643481169578,0.25,94.673,94.601,6.0]
[1643481169776,0.25,94.673,94.602,0.25]
[1643481170176,0.25,94.673,94.602,38.66779266]
[1643481170580,0.25,94.673,94.612,6.0]
[1643481170780,0.25,94.673,94.613,0.25]
[1643481171180,0.25,94.673,94.612,6.0]
[1643481171680,0.25,94.673,94.601,6.0]
[1643481172285,0.25,94.673,94.602,35.71256491]
[1643481172482,6.0,94.669,94.612,6.0]
[1643481172886,0.25,94.668,94.613,0.25]
[1643481173883,0.25,94.678,94.613,0.25]
[1643481174610,0.25,94.678,94.609,6.0]
[1643481174808,0.25,94.678,94.61,0.25]
[1643481176510,6.0,94.669,94.61,0.25]
[1643481176911,0.25,94.668,94.61,0.25]
[1643481177313,0.25,94.668,94.602,0.25]
[1643481177513,0.25,94.668,94.601,6.0]
[1643481178914,0.25,94.668,94.602,0.25]
[1643481179713,0.25,94.668,94.601,6.0]
[1643481180014,6.0,94.669,94.601,6.0]
[1643481180815,6.0,94.669,94.602,0.25]
[1643481181016,2.95669142,94.668,94.601,6.0]
[1643481181415,6.0,94.658,94.601,6.0]
[1643481181815,0.25,94.657,94.601,6.0]
[1643481182014,22.546,94.668,94.601,6.0]
[1643481182515,6.0,94.658,94.602,0.25]
[1643481183417,22.546,94.668,94.602,0.25]
[1643481183618,22.546,94.668,94.602,34.07083186]
[1643481184019,22.546,94.668,94.612,6.0]
[1643481184416,22.546,94.668,94.613,0.25]
[1643481185017,0.25,94.667,94.613,0.25]
[1643481185417,22.546,94.668,94.602,0.25]
[1643481185621,0.25,94.667,94.603,6.0]
[1643481185816,22.546,94.668,94.603,6.0]
[1643481186820,6.0,94.658,94.604,0.25]
[1643481187220,0.25,94.657,94.604,0.25]
[1643481187419,0.25,94.667,94.603,6.0]
[1643481188824,0.25,94.667,94.604,0.25]
[1643481189020,6.0,94.658,94.604,0.25]
[1643481189420,0.25,94.657,94.604,0.25]
[1643481189824,22.546,94.668,94.604,0.25]
[1643481190021,6.0,94.658,94.604,0.25]
[1643481190622,22.546,94.668,94.604,0.25]
[1643481192029,6.0,94.658,94.603,6.0]
[1643481192431,0.25,94.657,94.603,6.0]
[1643481193434,0.25,94.657,94.604,0.25]
[1643481194032,6.0,94.658,94.604,0.25]
[1643481194236,22.546,94.668,94.603,6.0]
[1643481194433,22.546,94.668,94.604,0.25]
[1643481195032,2015.863,94.7,94.604,0.25]
[1643481195233,46.6632,94.698,94.604,23.5646]
[1643481195433,6.0,94.688,94.604,23.5646]
[1643481195633,6.0,94.688,94.615,34.23363988]
[1643481195834,23.7448,94.687,94.616,0.25]
[1643481196037,6.0,94.677,94.625,6.0]
[1643481196234,6.0,94.677,94.616,0.25]
[1643481196534,0.25,94.676,94.614,6.0]
[1643481196734,23.7448,94.676,94.614,6.0]
[1643481196936,23.7448,94.676,94.615,0.25]
[1643481197138,6.0,94.666,94.615,0.25]
[1643481197438,0.25,94.665,94.615,0.25]
[1643481197636,6.0,94.666,94.615,0.25]
[1643481197839,6.0,94.666,94.612,0.25]
[1643481198640,23.4948,94.676,94.612,0.25]
[1643481200147,22.8739,94.698,94.612,0.25]
[1643481200344,0.25,94.697,94.612,0.25]
[1643481200545,6.0,94.688,94.612,0.25]
[1643481200762,0.25,94.687,94.612,0.25]
[1643481203471,0.25,94.697,94.612,0.25]
[1643481204270,0.25,94.697,94.611,6.0]
[1643481204471,6.0,94.688,94.611,6.0]
[1643481204673,23.1454,94.687,94.607,6.0]
[1643481204879,23.3954,94.687,94.603,6.0]
[1643481205074,23.3954,94.687,94.605,6.0]
[1643481205275,23.3954,94.687,94.603,44.52125715]
[1643481205483,23.3954,94.687,94.604,10.76869624]
[1643481205676,23.3954,94.687,94.605,6.0]
[1643481205879,6.0,94.677,94.614,6.0]
[1643481206281,0.25,94.676,94.615,0.25]
[1643481207176,0.25,94.676,94.613,6.0]
[1643481207476,0.25,94.676,94.614,0.25]
[1643481208577,0.25,94.676,94.613,6.0]
[1643481208779,0.25,94.676,94.614,0.25]
[1643481209177,0.25018484,94.686,94.614,0.25]
[1643481209577,0.25018484,94.686,94.614,6.0]
[1643481209777,0.25018484,94.686,94.613,6.0]
[1643481209979,3.772349,94.677,94.592,2.92639311]
[1643481210176,23.2231,94.676,94.592,7.69896618]
[1643481210379,23.4731,94.676,94.593,4.77257307]
[1643481210778,23.4731,94.676,94.594,0.25]
[1643481211077,23.4731,94.676,94.593,4.77257307]
[1643481211282,6.0,94.666,94.594,0.25]
[1643481211478,23.4335,94.665,94.595,4.77257307]
[1643481211779,23.6835,94.665,94.603,6.0]
[1643481211978,23.6835,94.665,94.605,6.0]
[1643481212282,23.6835,94.665,94.606,0.25]
[1643481212478,23.6835,94.665,94.609,6.0]
[1643481213078,23.6835,94.665,94.601,6.0]
[1643481213883,23.6835,94.665,94.602,0.25]
[1643481214081,23.6835,94.665,94.61,6.0]
[1643481214284,23.6835,94.665,94.611,0.25]
[1643481215683,23.4335,94.665,94.611,0.25]
[1643481215889,0.25,94.664,94.611,0.25]
[1643481216089,0.25,94.664,94.601,6.0]
[1643481216289,0.25,94.664,94.602,0.25]
[1643481216989,0.25,94.664,94.606,6.0]
[1643481217392,0.25,94.664,94.607,0.25]
[1643481218094,0.00018484,94.686,94.607,0.25]
[1643481218692,6.00018484,94.686,94.607,0.25]
[1643481218894,6.25018484,94.686,94.607,0.25]
[1643481219096,6.25018484,94.686,94.607,6.25]
[1643481219293,6.25018484,94.686,94.608,0.25]
[1643481219914,0.00018484,94.686,94.609,4.76913041]
[1643481220119,0.00018484,94.686,94.619,6.0]
[1643481220316,0.00018484,94.686,94.62,0.25]
[1643481220516,0.00018484,94.686,94.621,6.0]
[1643481220916,0.00018484,94.686,94.622,0.25]
[1643481221619,0.00018484,94.686,94.624,6.0]
[1643481221816,0.00018484,94.686,94.625,0.25]
[1643481229726,0.00018484,94.686,94.624,6.0]
[1643481231429,0.00018484,94.686,94.625,0.25]
[1643481231729,0.00018484,94.686,94.624,6.0]
[1643481232629,0.00018484,94.686,94.62,6.0]
[1643481233230,0.00018484,94.686,94.607,6.0]
[1643481233629,0.00018484,94.686,94.597,2.30454387]
[1643481233829,0.00018484,94.686,94.594,17.69527897]
[1643481233830,0.00018484,94.686,94.598,4.76422044]
[1643481234231,0.00018484,94.686,94.599,0.25]
[1643481234435,0.00018484,94.686,94.596,23.3708]
[1643481234632,6.0,94.678,94.597,4.76405242]
[1643481234832,0.25,94.677,94.597,5.01405242]
[1643481235034,0.25,94.677,94.607,6.0]
[1643481235232,23.6218,94.677,94.607,6.0]
[1643481235432,23.6218,94.677,94.608,0.25]
[1643481235632,23.6218,94.677,94.606,6.0]
[1643481235933,23.6218,94.677,94.607,0.25]
[1643481236332,23.6218,94.677,94.606,6.0]
[1643481236532,23.6218,94.677,94.601,6.0]
[1643481236533,6.0,94.667,94.601,6.0]
[1643481236732,6.0,94.667,94.573,2.92639311]
[1643481237035,29.2144,94.666,94.569,2.92639311]
[1643481237432,29.2144,94.666,94.569,34.7130635]
[1643481237632,29.2144,94.666,94.592,0.25]
[1643481238032,29.2144,94.666,94.601,6.0]
[1643481238331,29.2144,94.666,94.602,0.25]
[1643481238531,28.9644,94.666,94.602,0.25]
[1643481238733,22.9644,94.666,94.609,6.0]
[1643481239134,22.9644,94.666,94.61,0.25]
[1643481239434,0.00018484,94.686,94.61,0.25]
[1643481239835,0.25018484,94.686,94.61,0.25]
[1643481240636,0.25018484,94.686,94.61,6.25]
[1643481241535,0.25018484,94.686,94.61,6.0]
[1643481241536,2.95669142,94.685,94.61,6.0]
[1643481241743,6.0,94.677,94.576,2.92639311]
[1643481241935,6.0,94.675,94.572,2.92639311]
[1643481242139,23.5281,94.674,94.571,2.92639311]
[1643481242337,23.7781,94.674,94.596,1.45937647]
[1643481242537,23.7781,94.674,94.597,1.45937647]
[1643481243337,23.7781,94.674,94.598,1.45937647]
[1643481243538,6.0,94.664,94.608,6.0]
[1643481243937,0.25,94.663,94.608,6.0]
[1643481244337,0.25,94.663,94.601,6.0]
[1643481244537,0.25,94.663,94.609,6.0]
[1643481245339,0.25,94.663,94.601,6.0]
[1643481245541,0.25,94.663,94.601,7.45937647]
[1643481245770,0.25,94.663,94.602,0.25]
[1643481246840,0.25,94.663,94.596,0.25]
[1643481247041,0.25,94.663,94.605,6.0]
[1643481247245,23.5039,94.663,94.605,6.0]
[1643481247444,23.5039,94.663,94.601,6.0]
[1643481247644,6.0,94.653,94.609,6.0]
[1643481247942,0.25,94.652,94.609,6.0]
[1643481248243,6.0,94.653,94.609,6.0]
[1643481248653,6.0,94.653,94.61,0.25]
[1643481249446,6.0,94.653,94.616,6.0]
[1643481249945,6.0,94.653,94.617,0.25]
[1643481251352,6.0,94.653,94.615,0.25]
[1643481252057,0.00018484,94.686,94.624,6.0]
[1643481252256,0.00018484,94.686,94.625,0.25]
[1643481252651,0.00018484,94.686,94.625,6.25]
[1643481253054,0.00018484,94.686,94.63,42.577574]
[1643481253274,0.00018484,94.686,94.635,6.0]
[1643481253475,0.00018484,94.686,94.64,6.0]
[1643481253875,0.00018484,94.686,94.641,0.25]
[1643481255277,0.00018484,94.686,94.63,0.25]
[1643481255677,0.00018484,94.686,94.631,6.0]
[1643481255877,0.00018484,94.686,94.632,35.26327673]
[1643481256078,0.00018484,94.686,94.642,6.0]
[1643481256281,0.00018484,94.686,94.643,0.25]
[1643481256479,0.00018484,94.686,94.632,0.25]
[1643481257483,6.0,94.677,94.626,0.25]
[1643481257881,6.0,94.677,94.631,6.0]
[1643481258184,0.00018484,94.686,94.63,6.0]
[1643481258381,0.00018484,94.686,94.631,0.25]
[1643481258580,0.00018484,94.686,94.633,6.0]
[1643481258781,0.00018484,94.686,94.634,0.25]
[1643481260386,0.00018484,94.686,94.634,6.0]
[1643481260785,0.00018484,94.686,94.635,0.25]
[1643481261387,0.00018484,94.686,94.635,6.25]
[1643481261589,0.00018484,94.686,94.635,0.25]
[1643481261792,0.00018484,94.686,94.629,0.25]
[1643481264491,6.0,94.679,94.629,0.25]
[1643481265391,0.25,94.678,94.627,0.25]
[1643481265893,23.6225,94.678,94.622,1.45937647]
[1643481266895,23.6225,94.678,94.623,0.25]
[1643481267090,23.6225,94.678,94.632,6.0]
[1643481267299,23.6225,94.678,94.633,0.25]
[1643481267491,0.25,94.678,94.633,0.25]
[1643481267893,0.00018484,94.686,94.633,0.25]
[1643481268492,0.00018484,94.686,94.626,1.45937647]
[1643481268695,6.0,94.679,94.627,0.25]
[1643481268902,0.25,94.678,94.627,0.25]
[1643481269795,0.25,94.678,94.626,0.25]
[1643481270298,0.00018484,94.686,94.626,1.70937647]
[1643481271399,0.00018484,94.686,94.636,6.0]
[1643481271799,0.00018484,94.686,94.637,0.25]
[1643481272801,0.00018484,94.686,94.628,0.25]
[1643481273199,0.00018484,94.686,94.626,1.45937647]
[1643481273399,0.00018484,94.686,94.627,0.25]
[1643481273800,6.0,94.679,94.627,1.70937647]
[1643481274001,6.0,94.679,94.627,0.25]
[1643481274301,0.25,94.678,94.627,0.25]
[1643481274500,24.3253,94.678,94.627,0.25]
[1643481274701,24.3253,94.678,94.628,1.45937647]
[1643481275000,24.3253,94.678,94.629,0.25]
[1643481277006,24.3253,94.678,94.629,1.70937647]
[1643481277206,24.3253,94.678,94.633,1.45937647]
[1643481277406,24.3253,94.678,94.634,0.25]
[1643481280211,24.3253,94.678,94.636,1.45937647]
[1643481280411,24.3253,94.678,94.637,0.25]
[1643481280613,24.3253,94.678,94.637,1.70937647]
[1643481281010,24.0753,94.678,94.637,1.70937647]
[1643481282312,0.25,94.677,94.637,1.70937647]
[1643481283012,0.25,94.677,94.637,1.45937647]
[1643481283214,0.25,94.677,94.635,1.45937647]
[1643481283412,0.25,94.677,94.634,1.45937647]
[1643481283612,6.0,94.668,94.632,1.45937647]
[1643481283812,0.25,94.667,94.633,1.45937647]
[1643481284015,0.25,94.667,94.632,1.45937647]
[1643481285015,0.25,94.667,94.631,1.45937647]
[1643481285414,0.25,94.667,94.63,1.45937647]
[1643481285616,0.25,94.667,94.629,1.45937647]
[1643481286018,0.25,94.667,94.63,1.45937647]
[1643481286617,0.25,94.667,94.629,1.45937647]
[1643481287037,0.25,94.667,94.63,1.45937647]
[1643481287336,0.25,94.667,94.631,0.25]
[1643481287735,24.0753,94.678,94.631,0.25]
[1643481288339,24.0753,94.678,94.64,6.0]
[1643481288536,24.0753,94.678,94.638,1.45937647]
[1643481288737,24.0753,94.678,94.636,1.45937647]
[1643481288951,24.0753,94.678,94.635,1.45937647]
[1643481289138,0.25,94.677,94.635,1.45937647]
[1643481289338,0.25,94.677,94.634,1.45937647]
[1643481289743,0.25,94.677,94.63,1.45937647]
[1643481290140,0.25,94.677,94.629,1.45937647]
[1643481290541,0.25,94.677,94.628,1.45937647]
[1643481290741,0.25,94.677,94.629,1.45937647]
[1643481290943,0.25,94.677,94.602,26.19909311]
[1643481290944,0.25,94.677,94.63,1.45937647]
[1643481291141,0.25,94.677,94.631,1.45937647]
[1643481291541,0.25,94.677,94.632,1.45937647]
[1643481291942,6.0,94.668,94.632,1.45937647]
[1643481292341,6.0,94.668,94.625,1.45937647]
[1643481292342,0.25,94.667,94.625,1.45937647]
[1643481292743,0.25,94.667,94.624,1.45937647]
[1643481292944,2.95669142,94.666,94.609,1.45937647]
[1643481293147,6.0,94.66,94.609,1.45937647]
[1643481293344,15.33,94.65,94.591,201.20937647]
[1643481293547,6.0,94.64,94.591,201.20937647]
[1643481293748,0.25,94.639,94.591,199.75]
[1643481293945,6.25,94.639,94.591,199.75]
[1643481294743,5.75,94.639,94.591,199.75]
[1643481294946,2.95669142,94.638,94.591,199.75]
[1643481296347,6.0,94.628,94.591,199.75]
[1643481296746,3.20669142,94.627,94.591,199.75]
[1643481296946,9.20669142,94.627,94.591,199.75]
[1643481297146,2.95669142,94.626,94.591,199.75]
[1643481297348,0.25,94.625,94.591,199.75]
[1643481297546,6.0,94.616,94.591,199.75]
[1643481297946,0.25,94.615,94.591,199.75]
[1643481299048,0.25,94.626,94.591,199.75]
[1643481301055,6.0,94.627,94.591,199.75]
[1643481301257,6.0,94.627,94.592,0.25]
[1643481301652,6.0,94.64,94.592,0.25]
[1643481302153,6.0,94.64,94.591,199.75]
[1643481302556,6.0,94.64,94.592,0.25]
[1643481303760,0.25,94.639,94.592,0.25]
[1643481304559,6.0,94.648,94.592,0.25]
[1643481304767,0.25,94.639,94.592,0.25]
[1643481305562,6.0,94.637,94.592,0.25]
[1643481305792,0.25,94.636,94.592,0.25]
[1643481306163,6.0,94.637,94.592,0.25]
[1643481306565,15.33,94.68,94.601,6.0]
[1643481306765,24.3846,94.679,94.602,0.25]
[1643481307568,24.3846,94.679,94.602,23.7434]
[1643481307966,24.3846,94.679,94.608,44.78983837]
[1643481308368,24.3846,94.679,94.609,0.25]
[1643481308568,6.0,94.669,94.618,6.0]
[1643481308768,6.0,94.669,94.619,0.25]
[1643481310072,6.0,94.669,94.609,0.25]
[1643481310473,6.0,94.669,94.618,6.0]
[1643481310878,6.0,94.669,94.619,0.25]
[1643481311980,0.25,94.668,94.608,44.78983837]
[1643481312179,6.0,94.669,94.608,44.78983837]
[1643481312382,0.25,94.668,94.608,44.78983837]
[1643481312780,0.25,94.668,94.579,1.45937647]
[1643481312981,0.25,94.668,94.601,6.0]
[1643481313394,0.25,94.668,94.602,0.25]
[1643481313795,24.1639,94.668,94.602,0.25]
[1643481314007,6.0,94.658,94.602,0.25]
[1643481314598,6.0,94.658,94.602,6.25]
[1643481314795,6.0,94.658,94.611,6.0]
[1643481314997,0.00018484,94.686,94.612,6.0]
[1643481315196,24.22078484,94.686,94.612,6.25]
[1643481315396,6.0,94.676,94.613,0.25]
[1643481315595,6.0,94.676,94.602,0.25]
[1643481315797,0.25,94.675,94.602,0.25]
[1643481316498,0.25,94.675,94.611,6.0]
[1643481316901,0.25,94.675,94.612,0.25]
[1643481319902,0.25,94.675,94.602,0.25]
[1643481320301,0.25,94.675,94.601,6.0]
[1643481320501,2.95669142,94.674,94.601,6.0]
[1643481320703,6.0,94.664,94.602,0.25]
[1643481320903,0.25,94.663,94.592,0.25]
[1643481321100,9.20669142,94.663,94.592,0.25]
[1643481321301,9.20669142,94.663,94.577,1.45937647]
[1643481321504,2.95669142,94.662,94.575,1.45937647]
[1643481321704,27.20509142,94.662,94.573,26.32497647]
[1643481321902,6.0,94.652,94.575,1.45937647]
[1643481322104,24.2484,94.651,94.574,1.45937647]
[1643481322401,24.4984,94.651,94.574,1.45937647]
[1643481322603,24.4984,94.651,94.592,0.25]
[1643481324004,24.4984,94.651,94.577,1.45937647]
[1643481324307,24.4984,94.651,94.592,0.25]
[1643481325004,24.4984,94.651,94.576,1.45937647]
[1643481325407,24.4984,94.651,94.575,1.45937647]
[1643481325408,108.75669142,94.65,94.575,1.45937647]
[1643481325606,6.0,94.64,94.573,23.134]
[1643481325806,0.25,94.639,94.573,23.134]
[1643481326007,6.25,94.639,94.573,23.134]
[1643481326406,6.25,94.639,94.566,1.45937647]
[1643481327006,0.25,94.638,94.566,1.45937647]
[1643481327208,0.25,94.638,94.574,1.45937647]
[1643481327409,0.25,94.638,94.573,1.45937647]
[1643481327608,0.25,94.638,94.592,0.25]
[1643481327807,0.25,94.638,94.575,1.45937647]
[1643481328008,6.0,94.641,94.592,0.25]
[1643481328208,0.25,94.64,94.578,1.45937647]
[1643481328408,3.20669142,94.64,94.572,1.45937647]
[1643481328608,6.0,94.63,94.571,1.45937647]
[1643481328808,0.25,94.629,94.57,1.45937647]
[1643481329009,6.25,94.629,94.57,1.45937647]
[1643481329413,6.25,94.629,94.569,1.45937647]
[1643481329909,6.0,94.629,94.569,1.45937647]
[1643481330110,6.0,94.631,94.569,1.45937647]
[1643481330509,6.0,94.631,94.568,1.45937647]
[1643481330709,6.0,94.631,94.571,1.45937647]
[1643481331110,6.0,94.63,94.571,1.45937647]
[1643481331310,6.25,94.63,94.569,1.45937647]
[1643481331713,6.25,94.63,94.571,1.45937647]
[1643481332213,6.25,94.63,94.57,1.45937647]
[1643481332613,6.25,94.63,94.571,1.45937647]
[1643481333213,6.25,94.63,94.572,1.45937647]
[1643481333616,6.25,94.63,94.571,1.45937647]
[1643481334015,6.25,94.63,94.572,1.45937647]
[1643481334818,6.25,94.63,94.569,1.45937647]
[1643481335020,6.25,94.63,94.57,1.45937647]
[1643481335418,6.25,94.63,94.569,1.45937647]
[1643481336019,6.25,94.63,94.568,1.45937647]
[1643481336618,6.25,94.63,94.567,47.83345551]
[1643481336819,6.25,94.63,94.568,1.45937647]
[1643481337222,6.25,94.63,94.567,46.37407904]
[1643481338625,9.20669142,94.63,94.567,46.37407904]
[1643481340125,8.95669142,94.63,94.567,46.37407904]
[1643481340322,6.0,94.63,94.568,1.45937647]
[1643481340723,6.0,94.63,94.567,47.83345551]
[1643481341326,6.0,94.63,94.568,1.45937647]
[1643481341723,6.0,94.63,94.567,46.37407904]
[1643481342325,0.25,94.629,94.567,46.37407904]
[1643481343929,0.25,94.629,94.567,47.83345551]
[1643481344129,0.25,94.629,94.567,46.37407904]
[1643481344330,0.25,94.629,94.567,47.83345551]
[1643481344531,0.25,94.629,94.563,23.7628]
[1643481344532,0.25,94.629,94.565,1.45937647]
[1643481344739,2.95669142,94.628,94.563,23.7628]
[1643481345138,6.0,94.618,94.563,23.7628]
[1643481345539,6.0,94.618,94.573,44.56197184]
[1643481346139,0.25,94.617,94.573,44.56197184]
[1643481346939,6.0,94.618,94.573,44.56197184]
[1643481347550,6.0,94.629,94.573,44.56197184]
[1643481347749,0.25,94.628,94.573,44.56197184]
[1643481352456,0.25,94.628,94.574,23.729]
[1643481352853,6.0,94.629,94.574,23.729]
[1643481354259,8.95669142,94.629,94.564,1.45937647]
[1643481354459,15.33,94.62,94.548,1.45937647]
[1643481354659,1.46744823,94.618,94.528,1.45937647]
[1643481354859,6.0,94.61,94.525,1.45937647]
[1643481355062,15.33,94.6,94.52,35.46656588]
[1643481355260,0.25,94.599,94.52,35.46656588]
[1643481355564,6.0,94.59,94.52,35.46656588]
[1643481355860,0.25,94.589,94.52,35.46656588]
[1643481356060,6.0,94.588,94.52,35.46656588]
[1643481356261,0.25,94.587,94.52,35.46656588]
[1643481357361,2.95669142,94.586,94.503,1.45937647]
[1643481357564,105.8,94.575,94.539,61.93791857]
[1643481357761,0.25,94.574,94.539,46.92451857]
[1643481358060,111.8,94.565,94.539,46.92451857]
[1643481358260,0.25,94.564,94.539,46.92451857]
[1643481358462,6.0,94.56,94.463,1.45937647]
[1643481358661,22.5169,94.559,94.462,0.95937647]
[1643481358864,6.0,94.549,94.456,46.5819]
[1643481359062,6.0,94.549,94.466,6.0]
[1643481359263,0.25,94.548,94.467,24.9673]
[1643481359465,0.25,94.548,94.468,42.73522636]
[1643481359466,9.20669142,94.548,94.468,42.73522636]
[1643481359663,6.25,94.548,94.468,42.73522636]
[1643481359863,6.25,94.548,94.469,0.25]
[1643481360066,6.0,94.538,94.469,0.25]
[1643481360263,0.25,94.537,94.469,0.25]
[1643481361466,0.25,94.548,94.469,0.25]
[1643481362067,24.3879,94.548,94.469,0.25]
[1643481362269,6.0,94.538,94.42,15.33]
[1643481362467,24.1379,94.537,94.401,48.5046]
[1643481362671,33.34459142,94.537,94.401,48.5046]
[1643481362868,6.0,94.53,94.401,48.5046]
[1643481363072,6.0,94.526,94.401,48.5046]
[1643481363268,0.25,94.525,94.429,44.53862152]
[1643481363469,6.0,94.52,94.429,44.53862152]
[1643481363672,6.0,94.519,94.429,44.53862152]
[1643481363869,6.0,94.515,94.429,44.53862152]
[1643481364069,30.0577,94.514,94.429,44.53862152]
[1643481364270,30.3077,94.514,94.436,0.25]
[1643481364669,30.3077,94.514,94.429,44.53862152]
[1643481365569,6.0,94.51,94.429,44.53862152]
[1643481365800,0.25,94.509,94.429,44.53862152]
[1643481365971,6.0,94.504,94.429,44.53862152]
[1643481366374,0.25,94.503,94.43,0.25]
[1643481367573,0.25,94.503,94.43,23.5906]
[1643481368175,6.25,94.503,94.43,23.5906]
[1643481369374,23.3551,94.502,94.43,23.5906]
[1643481369575,6.0,94.492,94.43,23.5906]
[1643481369774,0.25,94.491,94.43,23.5906]
[1643481369976,0.25,94.491,94.401,24.1132]
[1643481370173,0.25,94.491,94.402,24.8145]
[1643481370376,0.25,94.491,94.411,6.0]
[1643481370575,24.5744,94.491,94.402,24.8145]
[1643481370974,6.0,94.481,94.403,44.65200463]
[1643481371377,24.5744,94.48,94.403,44.65200463]
[1643481371572,24.5744,94.48,94.402,24.8145]
[1643481371573,6.0,94.47,94.402,24.8145]
[1643481371777,23.5394,94.469,94.36,15.33]
[1643481371975,6.0,94.459,94.379,6.0]
[1643481372377,6.0,94.459,94.37,23.8197]